Cogmind - Beta 11.1 @@@ ROGUE MODE // 2022.09.02 @ 23:14:21 Player: Okkudo Result: Destroyed by D-53 Grenadier with Mini Grenade Launcher Performance ------------- Evolutions (0) 0 Regions Visited (2) 400 Robots Destroyed (3) 15 Value Destroyed (128) 128 Prototype IDs (0) 0 Alien Tech Used (0) 0 Bonus (0) 0 TOTAL SCORE: 543 Bonus ------- None Cogmind --------- Core Integrity 0/250 Matter 300/300 Energy 100/100 System Corruption 0% Temperature Cool (0) Movement Walking (190) Ox1 Location -10/Mines Parts ------- > --- POWER (1) -------- (None) > --- PROPULSION (2) --- Improved Aluminum Leg > --- UTILITY (2) ------ Large Storage Unit > --- WEAPON (2) ------- Light Assault Rifle > --- INVENTORY (15) --- Improved Aluminum Leg Improved Aluminum Leg Targeting Computer Medium Laser Medium Laser Particle Gun Assault Rifle Grenade Launcher Mining Laser Blade Trap Blade Trap Blade Trap Blade Trap Peak State ------------ > --- POWER ------------ Light Ion Engine > --- PROPULSION ------- Improved Aluminum Leg Improved Aluminum Leg > --- UTILITY ---------- Heat Sink Large Storage Unit > --- WEAPON ----------- Light Assault Rifle Light Assault Rifle > --- INVENTORY -------- Ion Engine Improved Aluminum Leg Improved Aluminum Leg Medium Laser Medium Laser Grenade Launcher Mining Laser Blade Trap [Rating: 10] Favorites ----------- Power Light Ion Engine Engine Light Ion Engine Propulsion Improved Aluminum Leg Leg Improved Aluminum Leg Utility Large Storage Unit Device Heat Sink Storage Large Storage Unit Weapon Light Assault Rifle Energy Gun Medium Laser Ballistic Gun Light Assault Rifle Build | -11 -10 -10 ------- Run | Scr Mat Min Slots Evolved . | . . . Power . | . . . Propulsion . | . . . Utility . | . . . Weapon . | . . . Parts Attached 11 | 4 5 2 Power 2 | 1 . 1 Engine 2 | 1 . 1 Core . | . . . Reactor . | . . . Propulsion 4 | 2 2 . Treads . | . . . Leg 4 | 2 2 . Wheel . | . . . Hover . | . . . Flight . | . . . Utility 2 | . 1 1 Device 1 | . . 1 Storage 1 | . 1 . Processor . | . . . Hackware . | . . . Protection . | . . . Artifact . | . . . Weapon 3 | 1 2 . Energy Gun 1 | . 1 . Energy Cannon . | . . . Ballistic Gun 2 | 1 1 . Ballistic Cannon . | . . . Launcher . | . . . Special Weapon . | . . . Impact Weapon . | . . . Slashing Weapon . | . . . Piercing Weapon . | . . . Special Melee Weapon . | . . . Unidentified Prototypes . | . . . Parts Lost 5 | . . 5 Power 2 | . . 2 Propulsion 1 | . . 1 Utility 1 | . . 1 Weapon 1 | . . 1 Highest Loss Streak 3 | . . 3 To Critical Strikes . | . . . Average Slot Usage (%) 91 | . 83 93 Engine 13 | . 14 13 Leg 27 | . 28 27 Device 6 | . . 8 Storage 13 | . 13 14 Energy Gun 1 | . 7 . Ballistic Gun 26 | . 20 27 Naked Turns . | . . . Heaviest Build 27 | 4 26 27 Greatest Support 26 | 20 26 26 Greatest Overweight (x) 1 | . 1 1 Average Overweight (x) . | . . . Largest Inventory Capacity 15 | 5 15 15 Average Capacity 14 | 5 14 15 Most Carried 14 | 5 7 14 Average Carried 9 | 2 5 11 Final Capacity 15 | 5 15 15 Final Carried 13 | 3 7 13 Class Distribution -------------------- 100% | Mutant Dominant Class ---------------- Mutant | -10/Materials Mutant | -10/Mines Resources | -11 -10 -10 ----------- Run | Scr Mat Min Matter Collected 350 | 189 . 161 Remotely . | . . . Salvage Created 148 | . . 148 Parts 2 | . . 2 Haulers Intercepted . | . . . Recyclers Shooed . | . . . Parts Field Recycled . | . . . Retrieved Matter . | . . . Parts Self-Destructed . | . . . Prevented . | . . . Kills | -11 -10 -10 ------- Run | Scr Mat Min Combat Hostiles Destroyed 3 | . . 3 Guns 3 | . . 3 Classes Destroyed 1 | . . 1 Grunt 3 | . . 3 Best Kill Streak 1 | . . 1 Combat Bots Only 1 | . . 1 Max Kills in Single Turn 1 | . . 1 Gunslinging . | . . . Exploded . | . . . Melee . | . . . Uniques/NPCs Destroyed . | . . . Combat | -11 -10 -10 -------- Run | Scr Mat Min Damage Taken 739 | . 38 701 Core 258 | . 28 230 Absorbed by Shields . | . . . Core Remaining (%) 100 | 100 . . Volleys Fired 26 | . . 26 Largest 2 | . . 2 Hottest 40 | . . 40 Shots Fired 52 | . . 52 Gun 52 | . . 52 Cannon . | . . . Launcher . | . . . Special . | . . . Kinetic 52 | . . 52 Thermal . | . . . Explosive . | . . . Electromagnetic . | . . . Robot Hit Streak 11 | . . 11 Robot Miss Streak 3 | . . 3 Penetration Max . | . . . Secondary Targets . | . . . Shots Hit Robots 37 | . . 37 Core Hits 11 | . . 11 Critical Kills . | . . . Critical Parts Destroyed . | . . . Critical Strikes . | . . . Melee Attacks . | . . . Impact . | . . . Slashing . | . . . Piercing . | . . . Sneak Attacks . | . . . Combat Hostiles . | . . . Follow-up Attacks . | . . . Damage Inflicted 318 | . . 318 Guns 308 | . . 308 Cannons . | . . . Explosions . | . . . Melee . | . . . Ramming 10 | . . 10 Kinetic 308 | . . 308 Thermal . | . . . Explosive . | . . . Electromagnetic . | . . . Impact . | . . . Slashing . | . . . Piercing . | . . . Highest Corruption . | . . . Average Corruption . | . . . Corruption Purged . | . . . Corruption Blocked . | . . . Overload Shots . | . . . Overflow Damage . | . . . Projectiles . | . . . Explosions . | . . . Melee . | . . . Knockbacks . | . . . Impact . | . . . Kinetic . | . . . Secondary . | . . . Self-Inflicted Damage . | . . . Shots . | . . . Rammed . | . . . Targets Rammed 1 | . . 1 Kicked 1 | . . 1 Crushed . | . . . Highest Temperature 17 | . . 17 Average Temperature 7 | . . 7 Received Heat Transfer 264 | . 24 240 Siege Activations . | . . . Robots Corrupted . | . . . Combat Hostiles . | . . . Parts Fried . | . . . Impact Corruptions . | . . . Robots Melted . | . . . Combat Hostiles . | . . . Parts Melted . | . . . Heat Transferred . | . . . Parts Sabotaged . | . . . Parts Stolen . | . . . Parts Stripped . | . . . Power Chain Reactions . | . . . Missiles Intercepted . | . . . Alert | -11 -10 -10 ------- Run | Scr Mat Min Peak Influence 120 | . 105 120 Initial 40 | . . 40 Average 48 | . 22 60 Maximum Alert Level . | . . . Low Security (%) 100 | 100 100 100 Level 1 . | . . . Level 2 . | . . . Level 3 . | . . . Level 4 . | . . . Level 5 . | . . . High Security . | . . . Max Security . | . . . Squads Dispatched 1 | . 1 . Investigation . | . . . Extermination . | . . . Reinforcement 1 | . 1 . Assault . | . . . Garrison . | . . . Intercept . | . . . Searches Triggered . | . . . Construction Impeded . | . . . Haulers Reinforced . | . . . Active Scanning Responses . | . . . Cargo Convoy Interrupts . | . . . Stealth | -11 -10 -10 --------- Run | Scr Mat Min Distress Signals . | . . . Communications Jammed . | . . . Distress Signals . | . . . Times Spotted 15 | . 7 8 Peak Tracking Total 5 | . 5 3 Tactical Retreats 4 | . 2 2 Traps | -11 -10 -10 ------- Run | Scr Mat Min Traps Triggered . | . . . Indirectly . | . . . Trap Hack Attempts . | . . . Triggered . | . . . Disarmed . | . . . Reprogrammed . | . . . Reused . | . . . Traps Extracted . | . . . Installed . | . . . Triggered . | . . . Most Traps Carried 4 | . . 4 Machines | -11 -10 -10 ---------- Run | Scr Mat Min Machines Disabled . | . . . Max in Single Turn . | . . . Machines Sabotaged . | . . . Garrisons Compromised . | . . . Overloaded Fab Kills . | . . . Hacking | -11 -10 -10 --------- Run | Scr Mat Min Machines Accessed 1 | . 1 . Terminals 1 | . 1 . Fabricators . | . . . Repair Stations . | . . . Recycling Units . | . . . Scanalyzers . | . . . Garrison Access . | . . . Total Hacks 2 | . 2 . Successful 1 | . 1 . Failed 1 | . 1 . Catastrophic . | . . . Database Lockouts . | . . . Manual . | . . . Terminals 2 | . 2 . Fabricators . | . . . Repair Stations . | . . . Recycling Units . | . . . Scanalyzers . | . . . Garrison Access . | . . . Terminal Hacks 1 | . 1 . Branch Access Points 1 | . 1 . Fabricator Hacks . | . . . Repair Station Hacks . | . . . Recycling Unit Hacks . | . . . Scanalyzer . | . . . Garrison Access Hacks . | . . . Unauthorized Hacks . | . . . Terminals . | . . . Fabricators . | . . . Repair Stations . | . . . Recycling Units . | . . . Scanalyzers . | . . . Garrison Access . | . . . Data Cores Recovered . | . . . Used . | . . . Hacking Detections 1 | . 1 . Full Trace Events . | . . . Feedback Events . | . . . Feedback Blocked . | . . . Robot Schematics Acquired . | . . . Robots Built . | . . . Authchips . | . . . Time . | . . . Total Robot Build Rating . | . . . Part Schematics Acquired . | . . . Parts Built . | . . . Authchips . | . . . Time . | . . . Total Part Build Rating . | . . . Parts Repaired . | . . . Time . | . . . Parts Recycled . | . . . Recycled Matter . | . . . Retrieved Matter . | . . . Retrieved Components . | . . . Parts Scanalyzed . | . . . Part Schematics Acquired . | . . . Parts Damaged . | . . . Bothacking | -11 -10 -10 ------------ Run | Scr Mat Min Used RIF Installer . | . . . Robots Hacked . | . . . Non-combat . | . . . Combat . | . . . Robot Hacks Applied . | . . . Relay Couplers Released . | . . . Fabnet Peak Effective % . | . . . Robots Rewired . | . . . Allies Hacked . | . . . Hacks Repelled . | . . . Allies | -11 -10 -10 -------- Run | Scr Mat Min Total Allies . | . . . Largest Group . | . . . Highest-Rated Group . | . . . Highest-Rated Ally . | . . . Total Orders . | . . . Ally Attacks . | . . . Total Damage . | . . . Kills . | . . . Allies Corrupted . | . . . Allies Melted . | . . . Intel | -11 -10 -10 ------- Run | Scr Mat Min Robot Analysis Total . | . . . Derelict Logs Recovered 3 | . . 3 Drone Launches . | . . . Drone Recoveries . | . . . Exploration | -11 -10 -10 ------------- Run | Scr Mat Min Turns Passed 1035 | 60 216 759 Spaces Moved 681 | 51 144 486 Core 16 | 16 . . Treads . | . . . Legs 665 | 35 144 486 Wheels . | . . . Hover . | . . . Flight . | . . . Fastest Speed 50 | 50 120 120 Average Speed 133 | 98 139 136 Slowest Speed 190 | 120 190 190 Overloaded Moves . | . . . Propulsion Burnouts . | . . . Robots Hopped . | . . . Cave-ins Triggered . | . . . Exploration Rate (%) 38 | 3 33 80 Regions Visited 2 Branch Regions 1 Pre-discovered Areas 4 | . . 4 Known Exits Taken 1 | . 1 . Unknown Exits Taken 1 | 1 . . Scrap Searched 1 | . . 1 Spaces Dug . | . . . Terrain Destroyed . | . . . Melee . | . . . Projectile . | . . . AOE . | . . . Terrain Rammed . | . . . Walls Destroyed . | . . . Machines Disabled . | . . . Actions | -11 -10 -10 --------- Run | Scr Mat Min Total 761 | 61 158 542 Wait 15 | . . 15 Move 679 | 50 143 486 Hop . | . . . Pick Up 23 | 7 8 8 Fast Attach . | . . . Attach 8 | 4 2 2 Detach . | . . . Swap 3 | . 3 . Drop 2 | . 2 . Fire 26 | . . 26 Melee . | . . . Ram . | . . . Kick 1 | . . 1 Crush . | . . . Escape Stasis . | . . . Rewire 4 | . . 4 Trap . | . . . Miscellaneous . | . . . Route ------- -11/Scrapyard -10/Materials (discovered 2 exits: [*Mat] / *Min) -10/Mines (discovered 2 exits: [*Mat x2]) History --------- Turn | Location | Event 8 | -11/Scrapyard | Discovered new exit (range 15) 61 | -11/Scrapyard | Entered Materials 131 | -10/Materials | Identified exit to Mines 236 | -10/Materials | Discovered new exit (range 6) 277 | -10/Materials | Entered Mines 303 | -10/Mines | Build established: Mutant 382 | -10/Mines | Found a hidden stash of uninstalled traps 553 | -10/Mines | Learned location of Zion (-6) 713 | -10/Mines | Discovered new exit (range 11) 719 | -10/Mines | Learned location of Storage (-8) 795 | -10/Mines | Core integrity fell below 50% 845 | -10/Mines | Discovered new exit (range 6) 985 | -10/Mines | Assembled infested the area 990 | -10/Mines | Assisted by a Guerilla fighting off Assembled 1029 | -10/Mines | Core integrity fell below 20% 1036 | -10/Mines | Destroyed by D-53 Grenadier with Mini Grenade Launcher Last Messages --------------- been tracking a group of Assembled to figure out where they're coming from, and they're closing on this area, come on!" 01000_ Pressure Siphon disabled. 01001_ BS-QI1(h): "I'll hold them off! Go on ahead or try to find another way!" 01001_ HV Slug penetrates D-53 Grenadier. 01001_ D-53 Grenadier knocked back. 01003_ HV Slug penetrates D-53 Grenadier. 01003_ D-53 Grenadier suffers critical hit (Destroy). 01003_ D-53 Grenadier destroyed. 01005_ HV Slug penetrates D-53 Grenadier. 01005_ D-53 Grenadier suffers critical hit (Destroy). 01005_ D-53 Grenadier knocked back. 01005_ HV Slug penetrates D-53 Grenadier. 01006_ BS-QI1(h) destroyed. 01024_ Lgt. Assault Rifle destroyed. 01026_ Ion Engine destroyed. 01027_ The unstable cave ceiling collapses. 01028_ Imp. Aluminum Leg destroyed. 01030_ The unstable cave ceiling collapses. [Achievement: Just Browsing] Map ----- +----------------------------------------------------+ | # ### #???## #??###########????????? | | #???## #??# #????????? | | #????# ####### #????????? | | = #????# #????????? | | # ##???# #????????? | | #### ##?#" ####### """ #????????? | | ???# ###! ##?????# < """ #????????? | | #### !% ###??????# """ #????????? | | """" = ##????????# #????????? | | """ % %#?????????###########????????? | | #### "" #????????????????????????????? | | ???# ?????????????????????????????? | | ???# % #????????????????????????????? | | ???# #????????????????????????????? | | ???# #????????????????????????????? | | #??# # #?????????????????????????????? | | #### ## #?????????????????????????????? | | ### #?????????????????????????????? | | ## #????##?????????????????????????? | | ######## ####### ####?????????????????????? | | ##?????# # # ###??????????????????? | | #??????# ##?????????????????? | | ???????# # #?????????????????? | | ???????## g d #?????????????????? | | ???????# t #?????????????????? | | ???????##### @#?????????????????? | | ???????????## # #?????????????????? | | ????????????##### #### ##?????????????????? | | ????????????????####???# #??????????????????? | | ???????????????????????#a#??????????????????? | | ??????????????????????? #??????????????????? | | ??????????????????????? ??????????????????? | | ?????????????????????? ??????????????????? | | ?????????????????????? ??????????????????? | | ?????????????????????? ??????????????????? | | ?????????????????????### ??????????????????? | | ????????????????????????# ?????????????????? | | ?????????????????????????##?????????????????? | | ????????????????????????????????????????????? | | ????????????????????????????????????????????? | | ????????????????????????????????????????????? | | ????????????????????????????????????????????? | | ????????????????????????????????????????????? | | ????????????????????????????????????????????? | | ????????????????????????????????????????????? | | ????????????????????????????????????????????? | | ????????????????????????????????????????????? | | | | | | | +----------------------------------------------------+ Best States ------------- Heat Dissipation 35 Energy Generation 10 Energy Capacity 250 Matter Stores 300 Matter Capacity 300 Sight Range 16 Terrain Scan Density 10 Evasion (%) 55 Item Schematics ----------------- None Robot Schematics ------------------ None Fabricated ------------ Nothing Alien Tech Used ----------------- None Achievements -------------- Just Browsing Challenges ------------ None Game ------ Seed DroneSchematicTorch Manual? 0 Play Time 00:09:13 Cumulative 39.2 hours Start 2022.09.02 @ 23:06:49 End 2022.09.02 @ 23:14:21 Sessions 1 Manual Loads 0 Difficulty Rogue Special Mode None Game No. 90 Rogue 90 Adventurer 0 Explorer 0 Win Type - Total 0 Types 0/0/0/0/0/0/0/0/0 Lore% 25 Gallery% 25 Achievement% 23 Wizard Run 0 Options --------- ASCII 0 Keyboard 0 Movement Numpad Keybinds 0 Fullscreen 1 Font 12/Smallcaps Map View 83x54 Tactical HUD 1 Map Filters NONE Filters NONE Steam 1 RUN: 86ab03f4-4ad3-4b5e-b867-14ba9e0c6f6e